fUST/lending_fUST_20260418
["ID","MTS","AMOUNT","RATE_DAILY","PERIOD"]
[420731717,1776508807135,-356.2626226,7.914e-05,2]
[420731718,1776508807159,-500.0,7.918e-05,2]
[420731719,1776508807182,-143.7373774,7.918e-05,2]
[420731720,1776508807586,-32.9928993,7.918e-05,2]
[420731721,1776508807611,-500.0,7.918e-05,2]
[420731722,1776508807636,-467.0071007,7.918e-05,2]
[420731723,1776508808118,-142.76482159,7.918e-05,2]
[420731724,1776508808145,-857.23517841,7.919e-05,2]
[420731725,1776508808403,-1000.0,7.919e-05,2]
[420731726,1776508809915,-1000.0,7.919e-05,2]
[420731727,1776508816237,-500.0,7.893e-05,2]
[420731728,1776508816262,-452.0,7.893e-05,2]
[420731729,1776508887660,159.0,0.00023451,120]
[420731730,1776508888969,159.0,0.00024451,120]
[420731733,1776509430673,50000.0,0.00023451,120]
[420731792,1776509438802,-359.8667128,6.738e-05,2]
[420731793,1776509438815,-770.72520287,6.738e-05,2]
[420731796,1776509438913,-1488.55634478,6.738e-05,2]
[420731797,1776509439123,-1361.65902798,6.738e-05,2]
[420731832,1776509440986,-0.77031625,6.738e-05,2]
[420731833,1776509441002,-849.4993329,6.738e-05,2]
[420731953,1776509443324,-168.92306242,6.738e-05,2]
[420731955,1776509443334,-516.0,6.738e-05,2]
[420731957,1776509443343,-917.65121269,6.806e-05,2]
[420732156,1776509983509,200.0,0.00023467,120]
[420732157,1776510016669,159.0,0.00023467,120]
[420732158,1776510017997,159.0,0.00024467,120]
[420732159,1776510021882,200.0,9e-05,30]
[420732160,1776510063561,-302.86965027,5e-05,2]
[420732161,1776510063584,-302.86965027,6.155e-05,2]
[420732162,1776510063804,-1241.84916017,6.155e-05,2]
[420732164,1776510103637,163.88,0.00024658,120]
[420732165,1776510166439,988.93,0.00024658,120]
[420732166,1776510260061,-1080.0,6.032e-05,2]
[420732167,1776510260090,-3920.0,6.032e-05,2]
[420732168,1776510269734,302.86965027,6.032e-05,2]
[420732169,1776510337133,1000.0,0.00024658,120]
[420732170,1776510363115,777.13034973,6.032e-05,2]
[420732302,1776510638512,-586.10813099,5.972e-05,2]
[420732304,1776510638521,-506.0,5.972e-05,2]
[420732306,1776510638531,-309.57142828,6.109e-05,2]
[420732308,1776510638540,-1200.0,6.737e-05,2]
[420732310,1776510638550,-300.0,6.737e-05,2]
[420732312,1776510638559,-74675.0,6.738e-05,2]
[420732314,1776510638568,-325.2847064,6.898e-05,2]
[420732316,1776510638577,-250.0,7.622e-05,2]
[420732318,1776510638586,-1718.96727399,7.693e-05,2]
[420732323,1776510638669,-431.77072601,7.693e-05,2]
[420732324,1776510638678,-325.155503,7.719e-05,2]
[420732325,1776510638687,-551.4459923,7.727e-05,2]
[420732326,1776510638696,-160.0,7.749e-05,2]
[420732327,1776510638706,-200.0,8e-05,2]
[420732328,1776510638715,-10389.62777869,8.099e-05,2]
[420732329,1776510638734,-137094.0065093,8.099e-05,2]
[420732330,1776510638744,-1000.0,8.099e-05,2]
[420732331,1776510638753,-1000.0,8.099e-05,2]
[420732332,1776510638762,-662.60247952,8.099e-05,2]
[420732333,1776510638772,-250.0,8.1e-05,2]
[420732334,1776510638781,-365.29428537,8.109e-05,2]
[420732336,1776510638790,-155.0,8.218e-05,2]
[420732338,1776510638799,-500.0,8.219e-05,2]
[420732339,1776510638809,-151.38127829,8.219e-05,2]
[420732340,1776510638818,-500.0,8.219e-05,2]
[420732341,1776510638829,-500.0,8.219e-05,2]
[420732342,1776510638838,-500.0,8.219e-05,2]
[420732343,1776510638848,-477.0,8.219e-05,2]
[420732344,1776510638858,-477.0,8.219e-05,2]
[420732345,1776510638867,-477.0,8.219e-05,2]
[420732346,1776510638876,-477.0,8.219e-05,2]
[420732347,1776510638885,-477.0,8.219e-05,2]
[420732348,1776510638894,-236.11080028,8.219e-05,2]
[420732349,1776510638910,-240.88919972,8.219e-05,2]
[420732350,1776510638919,-477.0,8.219e-05,2]
[420732351,1776510638929,-477.0,8.219e-05,2]
[420732352,1776510638938,-477.0,8.219e-05,2]
[420732353,1776510638947,-477.0,8.219e-05,2]
[420732354,1776510638957,-477.0,8.219e-05,2]
[420732355,1776510638966,-241.31734571,8.219e-05,2]
[420732370,1776510641030,-235.68265429,8.219e-05,2]
[420732371,1776510641040,-477.0,8.219e-05,2]
[420732372,1776510641050,-1249.0,8.219e-05,2]
[420732373,1776510641060,-477.0,8.219e-05,2]
[420732374,1776510641069,-1249.0,8.219e-05,2]
[420732375,1776510641078,-1249.0,8.219e-05,2]
[420732376,1776510641088,-1249.0,8.219e-05,2]
[420732377,1776510641097,-477.0,8.219e-05,2]
[420732378,1776510641107,-1249.0,8.219e-05,2]
[420732379,1776510641121,-477.0,8.219e-05,2]
[420732380,1776510641130,-477.0,8.219e-05,2]
[420732381,1776510641140,-1249.0,8.219e-05,2]
[420732382,1776510641150,-477.0,8.219e-05,2]
[420732383,1776510641159,-150.0,8.219e-05,2]
[420732384,1776510641169,-150.0,8.219e-05,2]
[420732385,1776510641178,-150.0,8.219e-05,2]
[420732386,1776510641187,-373.61734571,8.219e-05,2]
[420732400,1776510643708,-103.38265429,8.219e-05,2]
[420732401,1776510643719,-150.0,8.219e-05,2]
[420732402,1776510643729,-344.88702727,8.219e-05,2]
[420732444,1776510646704,-904.11297273,8.219e-05,2]
[420732446,1776510646714,-150.0,8.219e-05,2]
[420732447,1776510646724,-150.0,8.219e-05,2]
[420732448,1776510646733,-150.0,8.219e-05,2]
[420732449,1776510646743,-150.0,8.219e-05,2]
[420732450,1776510646752,-150.0,8.219e-05,2]
[420732451,1776510646762,-150.0,8.219e-05,2]
[420732452,1776510646772,-477.0,8.219e-05,2]
[420732453,1776510646781,-933.06386579,8.219e-05,2]
[420732454,1776510646793,-315.93613421,8.219e-05,2]
[420732455,1776510646802,-477.0,8.219e-05,2]
[420732456,1776510646811,-1249.0,8.219e-05,2]
[420732457,1776510646821,-477.0,8.219e-05,2]
[420732458,1776510646830,-1249.0,8.219e-05,2]
[420732459,1776510646839,-477.0,8.219e-05,2]
[420732460,1776510646849,-308.09317592,8.219e-05,2]
[420732461,1776510646861,-940.90682408,8.219e-05,2]
[420732462,1776510646870,-82.84589302,8.219e-05,2]
[420732464,1776511045734,166.73591,3.313e-05,2]
[420732465,1776511111890,159.0,0.00023474,120]
[420732466,1776511113224,159.0,0.00024474,120]
[420732467,1776511494445,168.88814641,3e-05,2]
[420732477,1776511832603,-1256.78638887,5.884e-05,2]
[420732478,1776511832660,-35.27012399,5.884e-05,2]
[420732480,1776511832670,-470.0,5.884e-05,2]
[420732482,1776511832680,-263.20649338,5.943e-05,2]
[420732484,1776511832692,-715.3,5.943e-05,2]
[420732486,1776511832703,-693.82423632,5.943e-05,2]
[420732487,1776511832719,-706.5,5.943e-05,2]
[420732489,1776511832732,-1732.80122919,5.943e-05,2]
[420732491,1776511832741,-300.75350008,6.034e-05,2]
[420732493,1776511832751,-1200.0,6.431e-05,2]
[420732494,1776511832760,-174.8203199,6.432e-05,2]
[420732496,1776511832770,-300.0,6.872e-05,2]
[420732529,1776511832780,-300.0,6.872e-05,2]
[420732533,1776511833102,-300.0,6.872e-05,2]
[420732535,1776511833119,-300.0,6.872e-05,2]
[420732537,1776511833128,-300.0,6.872e-05,2]
[420732539,1776511833138,-1200.0,6.873e-05,2]
[420732541,1776511833148,-4892.60715103,6.875e-05,2]
[420732543,1776511833157,-747.551699,6.876e-05,2]
[420732545,1776511833166,-747.551699,7.165e-05,2]
[420732547,1776511833175,-184.0,7.327e-05,2]
[420732549,1776511833186,-441.0,7.327e-05,2]
[420732551,1776511833196,-92.47524632,7.454e-05,2]
[420732553,1776511833207,-655.07645268,7.454e-05,2]
[420732555,1776511833218,-2095.99988363,7.701e-05,2]
[420732624,1776511839290,-54.73811637,7.701e-05,2]
[420732625,1776511839300,-747.551699,7.744e-05,2]
[420732626,1776511839309,-217.73355989,7.873e-05,2]
[420732627,1776511839319,-36.91369486,7.873e-05,2]
[420732666,1776511841184,-463.08630514,7.873e-05,2]
[420732667,1776511841193,-500.0,7.873e-05,2]
[420732668,1776511841203,-500.0,7.873e-05,2]
[420732669,1776511841212,-507.13510069,7.873e-05,2]
[420732670,1776511841222,-500.0,7.873e-05,2]
[420732671,1776511841231,-500.0,7.873e-05,2]
[420732672,1776511841241,-500.0,7.899e-05,2]
[420732673,1776511841250,-335.14799882,7.899e-05,2]
[420732674,1776511841260,-500.0,7.899e-05,2]
[420732675,1776511841269,-110.4576671,7.9e-05,2]
[420732734,1776511844181,-1352.99176546,7.9e-05,2]
[420732764,1776511847089,-22309.32889199,7.9e-05,2]
[420732765,1776511847237,-289946.7388488,7.9e-05,2]
[420732769,1776511861723,-3214.17683852,7.9e-05,2]
[420732770,1776511920685,2055.07,0.00023474,120]
[420732773,1776512208777,159.0,0.00023551,120]
[420732774,1776512210095,159.60959887,0.00024551,120]
[420732775,1776512237324,500.0,0.00023551,120]
[420732776,1776512336763,9809.27848535,0.00024658,120]
[420732777,1776512543830,500.0,0.00023551,120]
[420732788,1776512684648,5187.43605868,0.00023551,120]
[420732789,1776512746762,250.0,0.00024657,120]
[420732790,1776512747027,250.0,0.00024657,120]
[420732791,1776512747266,250.0,0.00024657,120]
[420732792,1776512747535,250.0,0.00024657,120]
[420732793,1776512747767,250.0,0.00024657,120]
[420732794,1776512748024,250.0,0.00024657,120]
[420732795,1776512748258,250.0,0.00024657,120]
[420732796,1776512748482,250.0,0.00024657,120]
[420732797,1776512748747,250.0,0.00024657,120]
[420732798,1776512749022,250.0,0.00024657,120]
[420732799,1776512749213,250.0,0.00024657,120]
[420732800,1776512749446,250.0,0.00024657,120]
[420732801,1776512749673,250.0,0.00024657,120]
[420732802,1776512749901,250.0,0.00024657,120]
[420732803,1776512750115,250.0,0.00024657,120]
[420732804,1776512750340,250.0,0.00024657,120]
[420732805,1776512750565,250.0,0.00024657,120]
[420732806,1776512750791,250.0,0.00024657,120]
[420732807,1776512751020,250.0,0.00024657,120]
[420732808,1776512751243,250.0,0.00024657,120]
[420732809,1776512751478,250.0,0.00024657,120]
[420732810,1776512751709,250.0,0.00024657,120]
[420732811,1776512751938,250.0,0.00024657,120]
[420732812,1776512752171,250.0,0.00024657,120]
[420732813,1776512752402,250.0,0.00024657,120]
[420732814,1776512752629,250.0,0.00024657,120]
[420732815,1776512752854,250.0,0.00024657,120]
[420732816,1776512753080,250.0,0.00024657,120]
[420732817,1776512753319,250.0,0.00024657,120]
[420732818,1776512753558,250.0,0.00024657,120]
[420732819,1776512753808,250.0,0.00024657,120]
[420732820,1776512754032,250.0,0.00024657,120]
[420732821,1776512754262,250.0,0.00024657,120]
[420732822,1776512754502,250.0,0.00024657,120]
[420732823,1776512754734,250.0,0.00024657,120]
[420732824,1776512754969,250.0,0.00024657,120]
[420732825,1776512755213,250.0,0.00024657,120]
[420732826,1776512755478,250.0,0.00024657,120]
[420732827,1776512755700,250.0,0.00024657,120]
[420732828,1776512755932,250.0,0.00024657,120]
[420732829,1776512756726,250.0,0.00024657,120]
[420732830,1776512756766,250.0,0.00024657,120]
[420732831,1776512756951,250.0,0.00024657,120]
[420732832,1776512757198,250.0,0.00024657,120]
[420732833,1776512757421,250.0,0.00024657,120]
[420732834,1776512757886,250.0,0.00024657,120]
[420732835,1776512758219,250.0,0.00024657,120]
[420732836,1776512758447,250.0,0.00024657,120]
[420732837,1776512758707,332.44540643,0.00024657,120]
[420732838,1776512845109,500.0,0.00023551,120]
[420732879,1776513031969,-433.45811007,4.842e-05,2]
[420732885,1776513032023,-713.72591,4.842e-05,2]
[420732887,1776513032034,-691.504,4.842e-05,2]
[420732889,1776513032045,-251.47000113,4.842e-05,2]
[420732890,1776513032054,-344.44626433,4.891e-05,2]
[420732892,1776513032063,-108.87373454,4.991e-05,2]
[420732941,1776513038256,-758.07,4.991e-05,2]
[420732942,1776513038415,-4133.05626546,4.991e-05,2]
[420732943,1776513038425,-1200.0,5.091e-05,2]
[420732944,1776513038435,-300.0,5.168e-05,2]
[420732945,1776513038444,-300.0,5.168e-05,2]
[420732946,1776513038454,-300.0,5.168e-05,2]
[420732947,1776513038463,-300.0,5.168e-05,2]
[420732948,1776513038473,-299.50500364,5.169e-05,2]
[420732949,1776513038482,-329.0,5.242e-05,2]
[420732950,1776513038492,-300.0,5.244e-05,2]
[420732951,1776513038501,-300.0,5.351e-05,2]
[420732952,1776513038510,-300.0,5.351e-05,2]
[420732953,1776513038520,-300.0,5.351e-05,2]
[420732954,1776513038529,-300.0,5.351e-05,2]
[420732955,1776513038539,-300.0,5.351e-05,2]
[420732956,1776513038548,-300.0,5.351e-05,2]
[420732957,1776513038558,-300.0,5.351e-05,2]
[420732958,1776513038567,-300.0,5.351e-05,2]
[420732959,1776513038576,-300.0,5.351e-05,2]
[420732960,1776513038585,-300.0,5.351e-05,2]
[420732961,1776513038595,-300.0,5.351e-05,2]
[420732962,1776513038604,-300.0,5.351e-05,2]
[420732963,1776513038614,-300.0,5.351e-05,2]
[420732964,1776513038623,-300.0,5.351e-05,2]
[420732965,1776513038633,-300.0,5.351e-05,2]
[420732966,1776513038642,-1680.0,5.6e-05,2]
[420732967,1776513038652,-420.0,5.685e-05,2]
[420732968,1776513038661,-255.0,5.685e-05,2]
[420732969,1776513038670,-420.0,5.685e-05,2]
[420732970,1776513038679,-420.0,5.685e-05,2]
[420732971,1776513038689,-420.0,5.768e-05,2]
[420732972,1776513038698,-209.74670545,5.903e-05,2]
[420732973,1776513038707,-2351.0,6.16e-05,2]
[420732974,1776513038716,-250.0,6.224e-05,2]
[420732975,1776513038725,-600.0,6.249e-05,2]
[420732976,1776513038735,-587.0,6.253e-05,2]
[420732977,1776513038745,-587.0,6.253e-05,2]
[420732978,1776513038754,-587.0,6.253e-05,2]
[420732979,1776513038764,-720.0,6.873e-05,2]
[420732980,1776513038773,-353.4159043,7.169e-05,2]
[420732981,1776513038782,-184.0,7.442e-05,2]
[420732982,1776513038791,-441.0,7.442e-05,2]
[420732983,1776513038800,-864.0,7.561e-05,2]
[420732984,1776513038810,-13401.91903375,7.6e-05,2]
[420732985,1776513038819,-500.0,7.673e-05,2]
[420732986,1776513038828,-500.0,7.673e-05,2]
[420732987,1776513038837,-500.0,7.673e-05,2]
[420732988,1776513038846,-500.0,7.696e-05,2]
[420732989,1776513038856,-500.0,7.696e-05,2]
[420732990,1776513038865,-500.0,7.696e-05,2]
[420732991,1776513038874,-500.0,7.696e-05,2]
[420732992,1776513038884,-437.31667899,7.696e-05,2]
[420732993,1776513038893,-500.0,7.696e-05,2]
[420732994,1776513038902,-500.0,7.696e-05,2]
[420732995,1776513038911,-500.0,7.696e-05,2]
[420732996,1776513038921,-500.0,7.696e-05,2]
[420732997,1776513038930,-500.0,7.696e-05,2]
[420732998,1776513038939,-500.0,7.696e-05,2]
[420732999,1776513038948,-500.0,7.696e-05,2]
[420733000,1776513038957,-500.0,7.696e-05,2]
[420733001,1776513038966,-500.0,7.696e-05,2]
[420733002,1776513038976,-500.0,7.696e-05,2]
[420733003,1776513038985,-500.0,7.696e-05,2]
[420733004,1776513038994,-741662.42970183,7.7e-05,2]
[420733005,1776513039003,-1208.25229198,7.731e-05,2]
[420733006,1776513039013,-2150.738,7.758e-05,2]
[420733007,1776513039022,-235.25816117,7.773e-05,2]
[420733008,1776513039031,-342.68514095,7.8e-05,2]
[420733009,1776513039040,-713.76202408,7.8e-05,2]
[420733010,1776513039049,-2543.0991022,7.834e-05,2]
[420733011,1776513039058,-1337.39599808,8e-05,2]
[420733012,1776513039067,-3348.92557784,8e-05,2]
[420733013,1776513039076,-3656.02870452,8e-05,2]
[420733014,1776513039085,-3248.81986306,8e-05,2]
[420733015,1776513039094,-3041.82245126,8e-05,2]
[420733016,1776513039104,-1259.76904465,8e-05,2]
[420733017,1776513039114,-2876.84979111,8e-05,2]
[420733018,1776513039123,-3171.10189983,8e-05,2]
[420733019,1776513039132,-3490.77746133,8e-05,2]
[420733020,1776513039141,-3183.81362619,8e-05,2]
[420733021,1776513039151,-300.99977326,8e-05,2]
[420733022,1776513039160,-747.551699,8.033e-05,2]
[420733023,1776513039169,-500.0,8.219e-05,2]
[420733024,1776513039179,-500.0,8.219e-05,2]
[420733025,1776513039188,-500.0,8.219e-05,2]
[420733026,1776513039197,-500.0,8.219e-05,2]
[420733027,1776513039206,-396.36405252,8.219e-05,2]
[420733028,1776513039215,-500.0,8.219e-05,2]
[420733029,1776513039224,-500.0,8.219e-05,2]
[420733030,1776513039233,-500.0,8.219e-05,2]
[420733031,1776513039242,-500.0,8.219e-05,2]
[420733032,1776513039251,-607.48886077,8.219e-05,2]
[420733033,1776513039260,-500.0,8.219e-05,2]
[420733034,1776513039269,-1431.39,8.219e-05,2]
[420733035,1776513039279,-500.0,8.219e-05,2]
[420733036,1776513039288,-151.5,8.219e-05,2]
[420733037,1776513039297,-151.5,8.219e-05,2]
[420733038,1776513039306,-799.0,8.219e-05,2]
[420733039,1776513039316,-799.0,8.219e-05,2]
[420733040,1776513039325,-151.5,8.219e-05,2]
[420733041,1776513039334,-799.0,8.219e-05,2]
[420733042,1776513039344,-151.5,8.219e-05,2]
[420733043,1776513039353,-151.5,8.219e-05,2]
[420733044,1776513039363,-208.49603102,8.219e-05,2]
[420733045,1776513039373,-799.0,8.219e-05,2]
[420733046,1776513039383,-799.0,8.219e-05,2]
[420733047,1776513039392,-799.0,8.219e-05,2]
[420733048,1776513039402,-799.0,8.219e-05,2]
[420733049,1776513039411,-799.0,8.219e-05,2]
[420733050,1776513039420,-799.0,8.219e-05,2]
[420733051,1776513039429,-799.0,8.219e-05,2]
[420733052,1776513039438,-150.0,8.219e-05,2]
[420733053,1776513039447,-150.0,8.219e-05,2]
[420733054,1776513039456,-150.0,8.219e-05,2]
[420733055,1776513039470,-150.0,8.219e-05,2]
[420733056,1776513039479,-150.0,8.219e-05,2]
[420733057,1776513039488,-150.0,8.219e-05,2]
[420733058,1776513039497,-799.0,8.219e-05,2]
[420733059,1776513039506,-799.0,8.219e-05,2]
[420733060,1776513039515,-799.0,8.219e-05,2]
[420733061,1776513039525,-557.23,8.219e-05,2]
[420733062,1776513039534,-799.0,8.219e-05,2]
[420733063,1776513039544,-799.0,8.219e-05,2]
[420733064,1776513039553,-500.0,8.219e-05,2]
[420733065,1776513039563,-799.0,8.219e-05,2]
[420733066,1776513039573,-501.53254788,8.219e-05,2]
[420733067,1776513039582,-799.0,8.219e-05,2]
[420733068,1776513039591,-799.0,8.219e-05,2]
[420733069,1776513039600,-1298.34,8.219e-05,2]
[420733070,1776513039610,-799.0,8.219e-05,2]
[420733071,1776513039619,-799.0,8.219e-05,2]
[420733072,1776513039628,-799.0,8.219e-05,2]
[420733073,1776513039637,-799.0,8.219e-05,2]
[420733074,1776513039646,-799.0,8.219e-05,2]
[420733075,1776513039656,-812.06469156,8.219e-05,2]
[420733076,1776513039665,-500.0,8.219e-05,2]
[420733077,1776513039675,-500.0,8.219e-05,2]
[420733078,1776513039684,-500.0,8.219e-05,2]
[420733079,1776513039693,-500.0,8.219e-05,2]
[420733081,1776513039703,-647.89399347,8.219e-05,2]
[420733082,1776513039712,-500.0,8.219e-05,2]
[420733083,1776513039721,-500.0,8.219e-05,2]
[420733084,1776513039730,-500.0,8.219e-05,2]
[420733085,1776513039740,-500.0,8.219e-05,2]
[420733086,1776513039749,-500.0,8.219e-05,2]
[420733087,1776513039758,-500.0,8.219e-05,2]
[420733088,1776513039767,-500.0,8.219e-05,2]
[420733089,1776513039777,-500.0,8.219e-05,2]
[420733090,1776513039786,-500.0,8.219e-05,2]
[420733091,1776513039796,-500.0,8.219e-05,2]
[420733092,1776513039805,-560.34375397,8.219e-05,2]
[420733093,1776513039814,-500.0,8.219e-05,2]
[420733094,1776513039823,-500.0,8.219e-05,2]
[420733095,1776513039832,-500.0,8.219e-05,2]
[420733096,1776513039841,-274.0,8.219e-05,2]
[420733097,1776513039851,-1083.83,8.219e-05,2]
[420733098,1776513039860,-500.0,8.219e-05,2]
[420733099,1776513039871,-500.0,8.219e-05,2]
[420733100,1776513039880,-500.0,8.219e-05,2]
[420733101,1776513039889,-500.0,8.219e-05,2]
[420733102,1776513039898,-1720.93,8.219e-05,2]
[420733103,1776513039907,-579.75912849,8.219e-05,2]
[420733104,1776513039917,-500.0,8.219e-05,2]
[420733105,1776513039926,-521.42,8.219e-05,2]
[420733106,1776513039935,-500.0,8.219e-05,2]
[420733107,1776513039945,-735.8,8.219e-05,2]
[420733108,1776513039954,-719.62,8.219e-05,2]
[420733109,1776513039964,-615.49,8.219e-05,2]
[420733110,1776513039973,-1745.94,8.219e-05,2]
[420733111,1776513039983,-902.7,8.219e-05,2]
[420733112,1776513039992,-500.0,8.219e-05,2]
[420733113,1776513040001,-500.0,8.219e-05,2]
[420733114,1776513040011,-500.0,8.219e-05,2]
[420733115,1776513040020,-500.0,8.219e-05,2]
[420733116,1776513040029,-500.0,8.219e-05,2]
[420733117,1776513040039,-772.19,8.219e-05,2]
[420733118,1776513040048,-700.8,8.219e-05,2]
[420733119,1776513040057,-500.0,8.219e-05,2]
[420733120,1776513040066,-500.62,8.219e-05,2]
[420733121,1776513040075,-4393.68,8.219e-05,2]
[420733122,1776513040084,-733.83,8.219e-05,2]
[420733123,1776513040094,-579.09,8.219e-05,2]
[420733124,1776513040103,-897.1,8.219e-05,2]
[420733125,1776513040112,-500.0,8.219e-05,2]
[420733126,1776513040122,-553.2,8.219e-05,2]
[420733127,1776513040131,-536.0,8.219e-05,2]
[420733128,1776513040140,-1186.31,8.219e-05,2]
[420733129,1776513040150,-560.41151384,8.219e-05,2]
[420733130,1776513040160,-500.0,8.219e-05,2]
[420733131,1776513040170,-2215.72,8.219e-05,2]
[420733132,1776513040179,-204.6078767,8.219e-05,2]
[420733133,1776513040188,-151.5,8.219e-05,2]
[420733134,1776513040197,-189.24971783,8.219e-05,2]
[420733135,1776513040206,-500.0,8.219e-05,2]
[420733136,1776513040215,-500.0,8.219e-05,2]
[420733137,1776513040224,-235.8616416,8.219e-05,2]
[420733138,1776513040234,-151.5,8.219e-05,2]
[420733139,1776513040243,-1139.0,8.219e-05,2]
[420733140,1776513040252,-500.0,8.219e-05,2]
[420733141,1776513040262,-50000.0,8.22e-05,2]
[420733142,1776513040271,-1000.0,8.221e-05,2]
[420733143,1776513040280,-1000.0,8.221e-05,2]
[420733144,1776513040289,-500.0,8.3e-05,2]
[420733145,1776513040299,-2230.315306,8.306e-05,2]
[420733146,1776513040309,-1000.0,8.317e-05,2]
[420733147,1776513040318,-747.551699,8.323e-05,2]
[420733148,1776513040328,-500.0,8.48e-05,2]
[420733149,1776513040336,-500.0,8.48e-05,2]
[420733150,1776513040345,-500.0,8.48e-05,2]
[420733151,1776513040354,-500.0,8.48e-05,2]
[420733152,1776513040364,-500.0,8.48e-05,2]
[420733153,1776513040374,-628.92380216,8.48e-05,2]
[420733154,1776513040383,-756.28274963,8.491e-05,2]
[420733155,1776513040392,-500.0,8.493e-05,2]
[420733156,1776513040401,-500.0,8.493e-05,2]
[420733157,1776513040411,-500.0,8.493e-05,2]
[420733158,1776513040420,-500.0,8.493e-05,2]
[420733159,1776513040429,-500.0,8.493e-05,2]
[420733160,1776513040438,-500.0,8.493e-05,2]
[420733161,1776513040448,-500.0,8.493e-05,2]
[420733162,1776513040457,-636.00833133,8.493e-05,2]
[420733163,1776513040467,-1431.39,8.493e-05,2]
[420733164,1776513040476,-500.0,8.493e-05,2]
[420733165,1776513040485,-557.23,8.493e-05,2]
[420733166,1776513040495,-1298.34,8.493e-05,2]
[420733167,1776513040504,-500.0,8.493e-05,2]
[420733168,1776513040513,-1083.83,8.493e-05,2]
[420733169,1776513040522,-544.50952253,8.493e-05,2]
[420733170,1776513040532,-500.0,8.493e-05,2]
[420733171,1776513040541,-500.0,8.493e-05,2]
[420733172,1776513040550,-500.0,8.493e-05,2]
[420733173,1776513040560,-1720.93,8.493e-05,2]
[420733174,1776513040569,-500.0,8.493e-05,2]
[420733175,1776513040579,-521.42,8.493e-05,2]
[420733176,1776513040588,-500.0,8.493e-05,2]
[420733177,1776513040598,-735.8,8.493e-05,2]
[420733178,1776513040607,-719.62,8.493e-05,2]
[420733179,1776513040616,-615.49,8.493e-05,2]
[420733180,1776513040625,-1745.94,8.493e-05,2]
[420733181,1776513040634,-902.7,8.493e-05,2]
[420733182,1776513040644,-500.0,8.493e-05,2]
[420733183,1776513040653,-216.93536669,8.493e-05,2]
[420733184,1776513040662,-400.29251578,8.493e-05,2]
[420733185,1776513040671,-500.0,8.493e-05,2]
[420733186,1776513040680,-256.06043712,8.493e-05,2]
[420733187,1776513040690,-772.19,8.493e-05,2]
[420733188,1776513040699,-700.8,8.493e-05,2]
[420733189,1776513040709,-350.51022091,8.493e-05,2]
[420733190,1776513040718,-500.62,8.493e-05,2]
[420733191,1776513040728,-4393.68,8.493e-05,2]
[420733192,1776513040737,-733.83,8.493e-05,2]
[420733193,1776513040746,-579.09,8.493e-05,2]
[420733194,1776513040755,-897.1,8.493e-05,2]
[420733195,1776513040765,-500.0,8.493e-05,2]
[420733196,1776513040774,-553.2,8.493e-05,2]
[420733197,1776513040783,-536.0,8.493e-05,2]
[420733198,1776513040792,-1186.31,8.493e-05,2]
[420733199,1776513040801,-500.0,8.493e-05,2]
[420733200,1776513040811,-2215.72,8.493e-05,2]
[420733201,1776513040820,-1139.0,8.493e-05,2]
[420733202,1776513040829,-500.0,8.493e-05,2]
[420733203,1776513040838,-151.0,8.708e-05,2]
[420733204,1776513040847,-500.0,8.767e-05,2]
[420733205,1776513040856,-500.0,8.767e-05,2]
[420733206,1776513040865,-566.45792576,8.767e-05,2]
[420733207,1776513040874,-500.0,8.767e-05,2]
[420733208,1776513040883,-500.0,8.767e-05,2]
[420733209,1776513040893,-500.0,8.767e-05,2]
[420733210,1776513040902,-500.0,8.767e-05,2]
[420733211,1776513040911,-1431.39,8.767e-05,2]
[420733212,1776513040920,-500.0,8.767e-05,2]
[420733213,1776513040930,-557.23,8.767e-05,2]
[420733214,1776513040939,-1298.34,8.767e-05,2]
[420733215,1776513040948,-500.0,8.767e-05,2]